bitfinex-derivatives/quotes_ETHF0:USTF0_20210702
["timestamp","ask_amount","ask_price","bid_price","bid_amount"]
[1625262868122,4.41054,2105.9,2105.7,5.57912628]
[1625262868276,1.0,2107.1,2105.7,5.57912628]
[1625262868372,1.0,2107.1,2106.1,1.90056272]
[1625262868823,14.5869,2107.2,2106.1,1.90056272]
[1625262869177,16.79217,2107.2,2107.0,2.20527]
[1625262869275,16.79217,2107.2,2107.0,4.95777]
[1625262869430,2.20527,2107.2,2107.0,4.95777]
[1625262873703,2.20527,2107.2,2106.3,1.89789172]
[1625262873803,1.0,2107.1,2106.3,1.89789172]
[1625262874107,1.0,2107.1,2105.9,1.90036752]
[1625262874504,1.0,2107.1,2105.8,1.90072619]
[1625262874805,1.0,2107.1,2105.8,1.35796102]
[1625262875207,2.20527,2105.9,2105.7,1.35842163]
[1625262875358,5.20817,2105.9,2105.7,1.35842163]
[1625262875561,5.20817,2105.9,2105.6,1.35861944]
[1625262879229,2.20527,2105.7,2105.6,1.35861944]
[1625262879427,2.20527,2105.7,2105.5,1.35753583]
[1625262880778,2.20527,2105.7,2105.4,1.35681894]
[1625262881780,2.20527,2105.7,2105.3,1.35731322]
[1625262882232,2.20527,2105.7,2105.2,1.9002385]
[1625262882233,2.20527,2105.7,2105.4,1.356966]
[1625262882631,2.20527,2105.7,2105.3,1.35680437]
[1625262883635,5.20817,2105.9,2105.4,1.35630556]
[1625262883796,2.20527,2105.9,2105.4,1.35630556]
[1625262883997,2.20527,2105.9,2105.5,1.35591608]
[1625262885654,2.20527,2105.9,2105.4,1.35564976]
[1625262889258,2.20527,2105.9,2105.4,3.56091976]
[1625262889810,2.20527,2105.9,2105.4,2.20527]
[1625262889910,1.0,2106.1,2105.3,1.3551888]
[1625262890560,1.0,2106.1,2105.3,4.8013888]
[1625262890813,1.0,2106.1,2105.4,1.35543046]
[1625262891261,14.5425,2107.1,2105.4,1.35543046]
[1625262891364,1.0,2107.0,2105.4,1.35543046]
[1625262891564,1.0,2107.0,2105.5,1.3550877]
[1625262891712,1.39577541,2107.7,2105.5,18.6864157]
[1625262891823,14.9947,2108.2,2106.0,1.35282503]
[1625262891928,14.9947,2108.2,2106.0,3.65262503]
[1625262892048,14.9947,2108.2,2106.1,5.0]
[1625262892176,14.9947,2108.2,2106.2,1.35209831]
[1625262892377,1.0,2107.5,2106.2,1.35209831]
[1625262892525,1.0,2107.5,2106.3,17.087589]
[1625262893530,14.9947,2108.2,2106.4,5.0]
[1625262893629,1.0,2108.1,2106.4,5.0]
[1625262893832,16.34954439,2108.5,2106.5,17.150966]
[1625262893978,14.9542,2108.5,2106.6,6.35063165]
[1625262894288,14.9542,2108.5,2106.8,5.0]
[1625262894380,14.9542,2108.5,2106.8,6.34998063]
[1625262894680,1.0,2108.4,2106.9,17.081036]
[1625262895483,1.0,2108.4,2106.8,1.34998063]
[1625262895883,1.0,2108.4,2106.5,6.35021959]
[1625262895884,5.759,2108.4,2106.6,1.35086144]
[1625262896336,5.759,2108.4,2106.3,1.35201169]
[1625262896949,5.759,2108.4,2106.4,17.152768]
[1625262897753,5.759,2108.4,2106.4,22.152768]
[1625262897875,4.759,2108.4,2106.4,30.152768]
[1625262897957,14.9542,2108.5,2106.4,31.50445395]
[1625262898859,14.9542,2108.5,2106.9,1.34962729]
[1625262898958,14.9542,2108.5,2107.0,8.0]
[1625262899057,14.9542,2108.5,2107.1,5.0]
[1625262899307,14.9542,2108.5,2107.2,17.138363]
[1625262899407,14.9542,2108.5,2107.3,5.0]
[1625262899560,14.9542,2108.5,2107.3,6.34820867]
[1625262899765,14.9542,2108.5,2107.4,17.238109]
[1625262899860,14.9542,2108.5,2107.5,5.0]
[1625262900109,14.9542,2108.5,2107.6,17.11759]
[1625262900959,14.9542,2108.5,2107.3,1.34820867]
[1625262901059,15.9542,2108.5,2107.3,1.34820867]
[1625262901159,19.2194,2108.5,2107.3,1.34820867]
[1625262901263,19.2194,2108.5,2107.0,1.34888311]
[1625262901711,19.2194,2108.5,2106.9,2.4995118]
[1625262901811,19.2194,2108.5,2107.1,17.2219]
[1625262902164,19.2194,2108.5,2107.0,17.19762]
[1625262902262,19.2194,2108.5,2106.9,1.3495118]
[1625262902363,19.2194,2108.5,2106.8,1.34973784]
[1625262902664,24.2194,2108.5,2106.4,1.35117917]
[1625262902865,28.9784,2108.5,2106.4,1.35117917]
[1625262903064,30.37381658,2108.5,2106.3,1.35182466]
[1625262903517,30.37381658,2108.5,2105.8,3.5147441]
[1625262903518,1.39559199,2108.2,2105.9,1.35314554]
[1625262903666,1.0,2108.1,2105.9,1.35314554]
[1625262903767,1.0,2108.1,2105.7,1.35403131]
[1625262903768,1.3957775,2107.9,2105.7,1.35403131]
[1625262903868,1.0,2107.8,2105.7,1.35403131]
[1625262903964,6.0,2107.8,2105.7,1.35403131]
[1625262904067,6.0,2107.8,2105.6,1.35427724]
[1625262904569,1.39594434,2107.7,2105.4,1.35522374]
[1625262904672,1.0,2107.6,2105.4,1.35522374]
[1625262905071,1.39605041,2107.5,2105.3,1.35576927]
[1625262905170,4.1466,2107.4,2105.3,1.35576927]
[1625262905270,5.0,2107.3,2105.3,1.35576927]
[1625262905371,1.0,2107.2,2105.3,1.35576927]
[1625262905520,1.0,2107.2,2105.0,1.35684357]
[1625262906773,2.39590904,2107.2,2104.9,1.35673957]
[1625262906873,5.0,2107.1,2104.9,1.35673957]
[1625262906972,1.0,2107.0,2104.9,1.35673957]
[1625262910377,1.0,2107.0,2104.8,1.35648764]
[1625262911432,1.0,2107.0,2104.7,1.35624135]
[1625262911686,1.3952282,2106.9,2104.4,1.357662]
[1625262911784,3.6366,2106.8,2104.4,1.357662]
[1625262911885,5.0,2106.7,2104.4,1.357662]
[1625262911985,1.0,2106.6,2104.4,1.357662]
[1625262912349,1.0,2106.6,2104.3,1.35805497]
[1625262913456,1.0,2106.6,2104.1,1.35787162]
[1625262914507,2.3948565,2106.6,2104.0,1.35814533]
[1625262914608,5.0,2106.5,2104.0,1.35814533]
[1625262914711,1.0,2106.4,2104.0,1.35814533]
[1625262915110,1.0,2106.4,2103.9,1.35801791]
[1625262915458,1.0,2106.4,2103.8,1.35810126]
[1625262916260,1.0,2106.4,2103.9,1.35789128]
[1625262916510,1.0,2106.4,2103.9,18.53280128]
[1625262916910,1.0,2106.4,2104.1,1.35697232]
[1625262917060,6.0,2106.5,2104.1,1.35697232]
[1625262917160,6.0,2106.5,2104.2,17.148526]
[1625262917265,5.0,2106.5,2104.2,17.148526]
[1625262918768,1.0,2106.7,2104.2,17.148526]
[1625262919068,1.0,2106.7,2104.4,1.35535514]
[1625262919218,5.0,2106.8,2104.4,1.35535514]
[1625262919319,6.0,2106.8,2104.4,1.35535514]
[1625262919417,1.0,2106.8,2104.5,17.169231]
[1625262919517,16.92740308,2107.2,2104.5,17.169231]
[1625262920018,5.0,2107.1,2104.5,17.169231]
[1625262920169,5.0,2107.1,2104.3,1.35488036]
[1625262920170,5.0,2107.1,2104.4,17.36057]
[1625262920270,5.0,2107.1,2104.5,1.35411482]
[1625262920369,1.0,2107.0,2104.5,1.35411482]
[1625262920621,1.0,2107.0,2104.6,17.230971]
[1625262921227,1.0,2107.0,2104.5,17.328441]
[1625262921877,5.0,2107.1,2104.5,17.328441]
[1625262922326,5.0,2107.1,2104.5,20.245941]
[1625262922678,5.0,2107.1,2104.5,21.59978507]
[1625262923131,16.5338,2107.2,2104.5,26.59978507]
[1625262923281,15.5338,2107.2,2104.5,26.59978507]
[1625262923935,15.5338,2107.2,2104.5,34.59978507]
[1625262924345,15.5338,2107.2,2104.9,1.352084]
[1625262924443,15.5338,2107.2,2104.9,9.352084]
[1625262924550,15.5338,2107.2,2105.0,5.0]
[1625262924654,15.5338,2107.2,2105.1,8.0]
[1625262924794,15.5338,2107.2,2105.2,5.0]
[1625262924895,15.5338,2107.2,2105.4,5.0]
[1625262924998,15.5338,2107.2,2105.5,8.0]
[1625262925145,15.5338,2107.2,2105.6,5.0]
[1625262925249,4.759,2108.0,2105.8,5.0]
[1625262925345,4.759,2108.0,2106.0,5.0]
[1625262925446,4.759,2108.0,2106.0,15.7874]
[1625262925646,4.759,2108.0,2106.0,32.870998]
[1625262925851,1.0,2108.4,2106.1,1.15]
[1625262925950,1.39269259,2108.9,2106.1,9.15]
[1625262926100,1.39269259,2108.9,2106.2,22.089755]
[1625262926602,1.39317947,2108.8,2106.2,22.089755]
[1625262926750,6.39317947,2108.8,2106.2,17.089755]
[1625262926961,1.39329043,2108.7,2106.2,17.089755]
[1625262927314,1.39338578,2108.6,2106.2,17.089755]
[1625262927414,4.27278578,2108.6,2106.2,22.089755]
[1625262927612,2.8794,2108.6,2106.2,22.089755]
[1625262927966,4.27282139,2108.6,2106.2,22.089755]
[1625262929471,1.39410555,2108.4,2106.2,17.089755]
[1625262929772,1.39410555,2108.4,2106.1,17.242947]
[1625262929878,4.759,2108.4,2106.1,17.242947]
[1625262929978,5.0,2108.3,2106.1,17.242947]
[1625262930080,5.0,2108.3,2105.9,1.35032137]
[1625262930177,5.0,2108.3,2105.5,3.51083556]
[1625262930178,1.39432726,2108.0,2105.5,1.35183104]
[1625262930280,4.05072726,2108.0,2105.5,1.35183104]
[1625262930377,9.05072726,2108.0,2105.5,1.35183104]
[1625262930582,1.39439313,2107.9,2105.4,1.35219169]
[1625262930779,1.39439313,2107.9,2105.6,17.19529]
[1625262930879,6.15339313,2107.9,2105.6,17.19529]
[1625262930981,11.15339313,2107.9,2105.6,17.19529]
[1625262931079,11.15339313,2107.9,2105.4,17.3098]
[1625262931182,11.15339313,2107.9,2105.3,15.99952245]
[1625262931282,1.39467365,2107.7,2105.3,14.6474]
[1625262931533,6.39467365,2107.7,2105.3,14.6474]
[1625262931632,1.39471834,2107.6,2105.3,14.6474]
[1625262932282,1.39481125,2107.5,2105.3,14.6474]
[1625262932382,5.08271125,2107.5,2105.3,14.6474]
[1625262932484,5.0,2107.4,2105.3,14.6474]
[1625262932584,5.0,2107.4,2105.0,1.35335483]
[1625262933532,5.0,2107.4,2104.9,1.89596746]
[1625262933533,1.39506658,2107.3,2104.8,1.35559064]
[1625262934085,1.39506658,2107.3,2104.7,1.35616528]
[1625262934586,1.39506658,2107.3,2104.8,1.35628111]
[1625262934884,1.39506658,2107.3,2105.0,5.0]
[1625262934987,1.39506658,2107.3,2105.0,8.4719]
[1625262935090,3.6879,2107.5,2105.2,1.3545069]
[1625262935338,3.6879,2107.5,2105.1,18.52807341]
[1625262935437,3.6879,2107.5,2105.3,17.182835]
[1625262935786,3.6879,2107.5,2105.1,1.35483141]
[1625262935787,8.6879,2107.5,2105.1,1.35483141]
[1625262936186,10.08297253,2107.5,2105.0,1.35529908]
[1625262936336,10.08297253,2107.5,2105.2,17.346267]
[1625262936639,10.08297253,2107.5,2105.1,17.204823]
[1625262936840,10.08297253,2107.5,2105.0,1.35529908]
[1625262937291,10.08297253,2107.5,2105.1,18.7318463]
[1625262937492,10.08297253,2107.5,2105.1,17.376564]
[1625262937605,10.08297253,2107.5,2105.0,18.44368696]
[1625262937902,10.08297253,2107.5,2105.1,17.302179]
[1625262938765,5.08297253,2107.5,2105.1,17.302179]
[1625262939016,5.08297253,2107.5,2105.1,22.302179]
[1625262939218,5.08297253,2107.5,2105.1,23.65738894]
[1625262939219,3.6879,2107.5,2105.1,23.65738894]
[1625262939319,1.39531056,2107.6,2105.1,23.65738894]
[1625262940069,1.39531056,2107.6,2105.1,18.65738894]
[1625262940472,1.39540795,2107.5,2105.1,18.65738894]
[1625262940621,9.93770795,2107.5,2105.1,18.65738894]
[1625262941825,1.39556243,2107.4,2105.1,17.302179]
[1625262942177,1.39574814,2107.2,2105.1,17.302179]
[1625262942931,1.39574814,2107.2,2104.8,1.35672385]
[1625262943031,1.39574814,2107.2,2104.7,1.35716562]
[1625262943032,1.39580495,2107.1,2104.7,1.35716562]
[1625262943334,2.80292496,2107.1,2104.7,1.35716562]
[1625262943434,10.1833459,2107.0,2104.6,1.35761655]
[1625262943939,1.39588068,2106.9,2104.6,1.35761655]
[1625262944386,1.39588068,2106.9,2104.5,1.3566851]
[1625262946639,1.39569885,2106.8,2104.4,17.15955679]
[1625262947140,1.39569885,2106.8,2104.4,1.35625679]
[1625262947342,2.34299885,2106.8,2104.4,1.35625679]
[1625262947494,5.0,2106.7,2104.4,1.35625679]
[1625262949356,5.0,2106.7,2104.3,1.35591221]
[1625262952471,0.9473,2106.8,2104.3,1.35591221]
[1625262952571,5.0,2106.6,2104.3,1.35591221]
[1625262952674,5.0,2106.6,2104.2,1.35562463]
[1625262953622,5.0,2106.6,2104.1,1.89787448]
[1625262953623,6.39519808,2106.6,2104.0,1.35607821]
[1625262954224,6.39519808,2106.6,2104.1,17.151414]
[1625262954325,5.0,2106.6,2104.1,17.151414]
[1625262956631,2.20527,2104.8,2104.3,2.20527]
[1625262956732,5.94557,2104.8,2104.3,2.20527]
[1625262958635,5.94557,2104.8,2104.7,2.20527]
[1625262959386,3.7403,2104.8,2104.7,2.20527]
[1625262960191,3.7403,2104.8,2104.3,2.20527]
[1625262962296,2.20527,2105.1,2104.3,2.20527]
[1625262962747,2.20527,2105.1,2105.0,2.20527]
[1625262962996,2.20527,2105.1,2104.2,2.6156]
[1625262964054,5.05047,2105.1,2103.9,1.35516063]
[1625262964653,5.05047,2105.1,2104.0,17.313385]
[1625262964756,5.05047,2105.1,2104.4,2.20527]
[1625262966760,5.86157,2104.6,2104.4,2.20527]
[1625262972282,3.6563,2104.6,2104.4,2.20527]
[1625262972379,14.5414,2106.1,2104.4,2.20527]
[1625262972482,14.5414,2106.1,2104.4,7.20527]
[1625262972780,2.20527,2105.7,2105.5,2.20527]
[1625262972883,2.20527,2105.7,2105.5,4.76017]
[1625262973542,2.20527,2105.7,2105.5,9.76017]
[1625262973745,15.7601,2107.2,2105.5,9.76017]
[1625262974297,15.7601,2107.2,2105.5,4.76017]
[1625262974444,15.7601,2107.2,2105.5,9.76017]
[1625262974546,15.7601,2107.2,2105.6,17.316238]
[1625262974745,2.20527,2107.1,2106.2,2.20527]
[1625262974856,2.20527,2107.1,2106.2,5.92887]
[1625262976771,2.20527,2106.7,2106.2,5.92887]
[1625262978074,2.20527,2106.7,2106.0,2.20527]
[1625262978175,2.20527,2106.7,2105.0,15.1244]
[1625262978424,2.20527,2106.7,2104.8,4.759]
[1625262978841,4.92907,2105.7,2105.1,2.20527]
[1625262980282,4.92907,2105.7,2104.0,15.5409]
[1625262980682,4.92907,2105.7,2103.6,1.35465193]
[1625262980833,2.20527,2104.7,2104.3,2.20527]
[1625262980983,4.61717,2104.7,2104.3,2.20527]
[1625262982787,2.20527,2104.4,2104.3,2.20527]
[1625262982887,2.20527,2104.7,2104.3,2.20527]
[1625262983539,2.7238,2105.7,2104.3,2.20527]
[1625262984395,15.75888786,2106.7,2104.3,2.20527]
[1625262984790,2.20527,2105.2,2104.8,2.20527]
[1625262988265,2.20527,2105.2,2104.3,2.20527]
[1625262990428,2.20527,2105.2,2104.3,3.56301385]
[1625262990829,2.20527,2105.2,2104.7,2.20527]
[1625262991629,2.20527,2105.2,2104.3,3.56301385]
[1625262992583,2.20527,2105.2,2104.3,2.20527]
[1625262993885,2.20527,2105.2,2104.3,3.56350572]
[1625262995993,2.20527,2105.2,2104.4,1.35785155]
[1625262996142,2.20527,2105.2,2104.4,18.51467355]
[1625262996843,2.20527,2105.2,2105.1,2.20527]
[1625263003358,15.3511,2106.2,2105.1,5.57547]
[1625263003969,15.3511,2106.2,2105.2,17.127287]
[1625263004873,15.3511,2106.2,2105.7,2.20527]
[1625263004971,15.3511,2106.2,2105.7,5.19157]
[1625263005173,2.20527,2106.4,2105.7,5.19157]
[1625263008887,2.20527,2106.1,2105.7,5.19157]
[1625263009287,2.20527,2106.1,2105.7,2.9863]
[1625263009386,2.20527,2106.1,2105.1,2.20527]
[1625263010888,2.20527,2105.3,2105.1,2.20527]
[1625263012945,2.20527,2105.3,2104.5,3.56278373]
[1625263013144,2.20527,2105.3,2104.5,2.20527]
[1625263014952,4.41054,2104.6,2104.5,2.20527]
[1625263015062,7.44724,2104.6,2104.5,2.20527]
[1625263018874,3.5034,2105.4,2104.5,2.20527]
[1625263018973,2.20527,2105.1,2104.5,2.20527]
[1625263019182,2.20527,2105.3,2104.5,2.20527]
[1625263019535,2.20527,2105.3,2104.6,1.35965847]
[1625263019944,2.20527,2105.3,2104.7,1.35944486]
[1625263020234,2.20527,2105.3,2104.8,1.35890419]
[1625263020485,2.20527,2105.3,2104.9,1.35849505]
[1625263020584,2.20527,2105.3,2104.9,4.47499505]
[1625263020684,2.20527,2105.3,2104.9,21.68225605]
[1625263020984,2.20527,2105.3,2105.2,4.41054]
[1625263023797,1.0,2106.1,2105.2,4.41054]
[1625263023897,1.4004522,2106.4,2105.2,4.41054]
[1625263025004,2.20527,2105.8,2105.2,4.41054]
[1625263031026,4.41054,2105.3,2105.2,4.41054]
[1625263036696,2.20527,2105.3,2105.2,4.41054]
[1625263037406,1.0,2106.1,2105.2,4.41054]
[1625263037504,1.401719,2106.3,2105.2,6.93584]
[1625263037953,1.40167603,2106.2,2105.2,6.93584]
[1625263039009,2.20527,2106.0,2105.8,2.20527]
[1625263039209,2.20527,2106.0,2105.8,5.18327]
[1625263041076,2.20527,2105.9,2105.8,5.18327]
[1625263041476,2.20527,2105.9,2105.2,4.73057]
[1625263043028,2.20527,2105.3,2105.2,4.73057]
[1625263043129,2.20527,2105.3,2105.2,2.20527]
[1625263045042,4.41054,2105.3,2105.2,2.20527]
[1625263048556,4.41054,2105.3,2105.2,5.62157]
[1625263048660,2.20527,2105.3,2105.2,5.62157]
[1625263051072,2.20527,2105.3,2105.2,3.4163]
[1625263051162,2.20527,2105.3,2105.2,5.62157]
[1625263051265,2.20527,2105.3,2105.2,3.4163]
[1625263053118,5.41054,2105.8,2105.2,3.4163]
[1625263053218,4.41054,2105.8,2105.2,3.4163]
[1625263054477,4.41054,2105.8,2104.9,1.36046834]
[1625263055130,2.20527,2105.5,2104.9,1.36046834]
[1625263056484,2.20527,2105.5,2105.0,1.36024846]
[1625263056985,2.20527,2105.5,2104.9,1.36049822]
[1625263057134,2.20527,2105.5,2105.1,2.20527]
[1625263059190,4.41054,2105.5,2105.4,2.20527]
[1625263059289,4.41054,2105.5,2105.4,4.95477]
[1625263062745,4.41054,2105.5,2105.4,2.20527]
[1625263066521,7.58114,2105.5,2105.4,2.20527]
[1625263068078,7.58114,2105.5,2105.1,2.20527]
[1625263068580,7.58114,2105.5,2104.7,1.36315001]
[1625263068778,8.98476311,2105.5,2104.7,1.36315001]
[1625263069189,4.41054,2104.8,2104.7,1.36315001]
[1625263069288,6.73544,2104.8,2104.7,1.36315001]
[1625263069993,6.73544,2104.8,2104.6,1.36368267]
[1625263070243,6.73544,2104.8,2104.5,1.36362549]
[1625263071395,6.73544,2104.8,2104.6,1.36372473]
[1625263071846,6.73544,2104.8,2104.5,1.36257235]
[1625263072295,6.73544,2104.8,2104.4,3.27100749]
[1625263072395,6.73544,2104.8,2104.4,1.36185175]
[1625263072746,6.73544,2104.8,2104.3,1.36234776]
[1625263073205,2.20527,2104.4,2104.3,1.36234776]
[1625263073849,2.20527,2104.4,2104.2,1.36194145]
[1625263074504,2.20527,2104.4,2104.3,1.36189546]
[1625263074903,2.20527,2104.4,2104.2,1.36185318]
[1625263075251,2.20527,2104.3,2104.2,1.36185318]
[1625263076968,2.20527,2104.3,2104.1,3.56673408]
[1625263082048,2.20527,2104.3,2104.2,1.36159862]
[1625263082198,2.20527,2104.3,2104.2,5.03299862]
[1625263082399,2.20527,2104.3,2104.2,5.57687417]
[1625263083050,2.20527,2104.4,2104.2,5.57687417]
[1625263083051,1.0,2105.4,2104.2,5.57687417]
[1625263083251,1.0,2105.4,2104.2,6.39594143]
[1625263083252,2.20527,2104.9,2104.2,6.39594143]
[1625263083353,3.20527,2104.9,2104.2,6.39594143]
[1625263083554,3.20527,2104.9,2104.4,1.36252655]
[1625263083651,2.20527,2104.9,2104.4,1.36252655]
[1625263084004,1.40214965,2105.6,2104.4,1.36252655]
[1625263084304,1.40214965,2105.6,2104.5,25.379265]
[1625263084464,1.40195,2106.0,2104.8,3.84152693]
[1625263084568,1.40195,2106.0,2104.9,5.0]
[1625263084720,1.40175173,2106.3,2105.1,1.35996846]
[1625263084816,1.94020415,2106.4,2105.2,8.0]
[1625263084915,1.94020415,2106.4,2105.3,5.0]
[1625263085017,1.94020415,2106.4,2105.4,8.0]
[1625263085120,2.80255517,2107.2,2105.6,2.71429982]
[1625263085315,2.20527,2106.8,2106.7,2.20527]
[1625263085418,2.20527,2106.8,2106.7,4.90197]
[1625263086419,1.0,2107.3,2106.7,4.90197]
[1625263086518,14.7303,2107.4,2106.7,4.90197]
[1625263086668,14.8437,2107.6,2106.7,4.90197]
[1625263086871,1.0,2107.5,2106.7,4.90197]
[1625263086972,3.80035798,2107.5,2106.7,4.90197]
[1625263087319,2.20527,2106.8,2106.7,4.90197]
[1625263091280,2.20527,2106.8,2105.6,2.20527]
[1625263091427,1.0,2106.7,2105.6,2.20527]
[1625263091979,1.0,2106.7,2105.1,2.71294629]
[1625263092130,1.0,2106.7,2104.8,2.71501289]
[1625263092531,3.79946462,2106.7,2104.6,2.71625963]
[1625263092681,1.40730197,2106.6,2104.6,2.71625963]
[1625263092783,1.0,2106.5,2104.6,2.71625963]
[1625263092883,1.0,2106.5,2104.5,2.71719955]
[1625263093249,1.0,2106.5,2104.6,2.71675836]
[1625263093347,2.20527,2105.2,2104.7,2.20527]
[1625263093449,4.73747,2105.2,2104.7,2.20527]
[1625263103580,2.20527,2104.9,2104.7,2.20527]
[1625263105089,2.20527,2105.2,2104.7,2.20527]
[1625263105234,2.20527,2105.2,2104.7,4.70197]
[1625263105534,2.20527,2105.2,2105.1,2.20527]
[1625263105735,1.0,2105.8,2105.1,2.20527]
[1625263105835,2.80068773,2106.1,2105.1,2.20527]
[1625263106586,1.0,2106.2,2105.1,2.20527]
[1625263107588,2.20527,2105.9,2105.1,2.20527]
[1625263108038,2.20527,2105.9,2105.1,7.20527]
[1625263108138,2.20527,2106.1,2105.2,17.287448]
[1625263108239,2.20527,2106.1,2105.2,20.285848]
[1625263109590,2.20527,2106.1,2106.0,2.20527]
[1625263109691,2.20527,2106.1,2106.0,5.14287]
[1625263112864,2.20527,2106.1,2106.0,2.9376]
[1625263114678,2.20527,2106.1,2105.8,2.20527]
[1625263115635,2.20527,2106.0,2105.8,2.20527]
[1625263116134,2.20527,2106.0,2104.8,2.72475629]
[1625263116284,3.20527,2106.0,2104.8,2.72475629]
[1625263116484,3.20527,2106.0,2104.5,3.54218317]
[1625263116485,3.20527,2106.0,2104.7,2.7251067]
[1625263117639,2.20527,2105.2,2104.7,2.7251067]
[1625263118092,2.20527,2105.2,2104.5,5.74745317]
[1625263118093,2.20527,2105.2,2104.6,2.72772541]
[1625263119645,2.20527,2105.2,2105.1,2.20527]
[1625263121717,1.0,2106.1,2105.1,5.45187]
[1625263121813,15.5753,2106.5,2105.1,5.45187]
[1625263121915,1.0,2106.4,2105.1,10.45187]
[1625263122060,15.5753,2106.5,2105.1,10.45187]
[1625263122263,15.5753,2106.5,2105.2,17.328674]
[1625263122361,15.5753,2106.5,2105.3,5.0]
[1625263122721,15.5753,2106.5,2105.4,17.136629]
[1625263122965,1.0,2106.5,2105.4,22.136629]
[1625263123064,1.0,2106.5,2105.5,8.0]
[1625263123165,2.79902372,2107.2,2105.6,5.0]
[1625263123264,2.79902372,2107.2,2105.6,7.4941]
[1625263123363,2.79902372,2107.2,2105.6,24.671388]
[1625263123767,2.20527,2107.1,2106.9,2.20527]
[1625263123915,2.20527,2107.1,2106.9,5.50097]
[1625263126566,2.20527,2107.1,2106.9,3.2957]
[1625263129277,2.20527,2107.1,2106.7,2.20527]
[1625263129430,5.54737,2107.1,2106.7,2.20527]
[1625263129735,2.20527,2106.8,2106.7,2.20527]
[1625263129836,2.20527,2106.8,2105.3,15.5383]
[1625263129934,1.0,2106.7,2105.3,15.5383]
[1625263130134,1.0,2106.7,2105.1,2.71993554]
[1625263130485,1.0,2106.7,2105.0,2.72044152]
[1625263130996,1.0,2106.7,2104.7,2.72235129]
[1625263131546,1.0,2106.7,2104.6,2.72330216]
[1625263131745,2.20527,2105.4,2104.7,2.20527]
[1625263131896,5.03937,2105.4,2104.7,2.20527]
[1625263133805,5.03937,2105.4,2105.3,4.41054]
[1625263141391,35.1434,2106.7,2105.3,4.41054]
[1625263141494,34.1434,2106.7,2105.3,4.41054]
[1625263141694,34.1434,2106.7,2105.3,9.41054]
[1625263141842,34.1434,2106.7,2106.6,4.41054]
[1625263141944,14.394,2106.7,2106.6,7.19164]
[1625263142143,2.20527,2106.8,2106.6,7.19164]
[1625263142849,2.20527,2107.0,2106.6,7.19164]
[1625263142949,2.7946462,2108.0,2106.6,12.19164]
[1625263143100,1.2926462,2108.0,2106.6,20.19164]
[1625263143507,15.5974,2109.2,2106.6,20.19164]
[1625263143508,3.63248271,2108.7,2106.6,20.19164]
[1625263143600,3.63248271,2108.7,2107.1,1.15]
[1625263143701,3.63248271,2108.7,2107.2,8.0]
[1625263143799,8.39148271,2108.7,2108.6,4.41054]
[1625263144001,3.63248271,2108.7,2108.6,7.67794]
[1625263144208,2.20527,2108.9,2108.6,7.67794]
[1625263145253,2.20527,2108.9,2108.6,0.89424]
[1625263145352,2.20527,2108.9,2106.9,15.7167]
[1625263145455,1.0,2108.8,2106.9,14.7167]
[1625263145858,2.20527,2107.6,2107.5,2.20527]
[1625263146858,2.20527,2107.6,2105.9,14.9582]
[1625263146959,3.20527,2107.6,2105.9,14.9582]
[1625263147206,3.20527,2107.6,2105.4,5.0]
[1625263147458,3.20527,2107.6,2105.1,3.52418097]
[1625263147758,3.20527,2107.6,2105.5,17.13725]
[1625263147858,2.20527,2106.7,2106.1,2.20527]
[1625263148369,2.20527,2106.7,2105.9,2.20527]
[1625263149863,2.20527,2106.7,2106.3,2.20527]
[1625263149963,1.0,2107.4,2106.3,2.20527]
[1625263150115,15.0245,2107.5,2106.3,2.20527]
[1625263150665,20.0245,2107.5,2106.3,2.20527]
[1625263150815,20.0245,2107.5,2105.0,1.0]
[1625263150917,21.0245,2107.5,2104.8,3.52703359]
[1625263151121,21.0245,2107.5,2104.7,15.2365]
[1625263151467,21.0245,2107.5,2104.6,3.52952989]
[1625263151571,21.0245,2107.5,2104.4,3.5322592]
[1625263151817,1.40713229,2107.4,2104.4,3.5322592]
[1625263151917,4.55597,2105.5,2105.4,2.20527]
[1625263152368,4.55597,2105.5,2105.2,2.20527]
[1625263152879,4.55597,2105.5,2104.1,3.53464653]
[1625263152971,9.55597,2105.5,2104.1,3.53464653]
[1625263153279,4.55597,2105.5,2103.4,3.54160281]
[1625263153381,10.55597,2105.5,2103.4,3.54160281]
[1625263153628,10.55597,2105.5,2103.3,3.54354183]
[1625263153928,10.55597,2105.5,2103.1,4.36128225]
[1625263153929,2.20527,2104.0,2103.9,2.20527]
[1625263154027,4.77037,2104.0,2103.9,2.20527]
[1625263155388,3.64421014,2104.0,2103.9,2.20527]
[1625263155637,1.07911014,2104.0,2103.9,2.20527]
[1625263155740,1.0,2105.3,2103.9,2.20527]
[1625263155888,2.20527,2104.7,2104.5,2.20527]
[1625263156544,15.3792,2105.4,2104.5,7.20527]
[1625263156644,15.3792,2105.4,2104.5,10.24127]
[1625263156896,14.5982,2106.7,2104.5,5.24127]
[1625263156998,1.0,2106.6,2104.5,5.24127]
[1625263157095,1.0,2106.6,2104.6,17.177359]
[1625263157196,15.3108,2106.6,2104.6,17.177359]
[1625263157948,2.20527,2105.3,2105.0,4.80607]
[1625263158249,2.20527,2105.6,2105.1,5.0]
[1625263158555,15.3108,2106.6,2105.1,5.0]
[1625263158652,14.3108,2106.6,2105.2,17.388987]
[1625263158903,14.3108,2106.6,2105.1,17.281526]
[1625263159004,14.3108,2106.6,2105.3,5.0]
[1625263159209,15.7447,2107.6,2105.3,22.104823]
[1625263159508,14.5006,2107.5,2105.3,5.0]
[1625263159759,1.0,2107.4,2105.3,13.0]
[1625263159858,1.0,2107.4,2105.5,5.0]